[Event "European Womens-ch 2025"]
[Site "Rhodes"]
[Date "2025.04.03"]
[Round "4.51"]
[White "Mihaljevic, Eva"]
[Black "Ciolacu, Alessia-Mihaela"]
[Result "1-0"]
[Annotator "NA RC"]
[ECO "B90"]
[WhiteElo "2039"]
[BlackElo "2136"]
[PlyCount "41"]
[EventDate "2025.03.29"]
[EventType "swiss"]
[EventCountry "GRE"]
[SourceTitle "playchess.com"]
[Source "ChessBase"]
[SourceQuality "1"]
[TimeControl "40/5400+30:1800+30"]

1. e4 {[%emt 1:31:00]} c5 {[%emt 1:31:00]} 2. Nf3 {[%emt 0:00:30]} d6 {[%emt 0:00:30]} 3. d4 {[%emt 0:00:30]} cxd4 {[%emt 0:00:30]} 4. Nxd4 {[%emt 0:00:30]} Nf6 {[%emt 0:00:30]} 5. Nc3 {[%emt 0:00:30]} a6 {[%emt 0:00:30]} 6. h3 {[%emt 0:00:30]} e5 {[%emt 0:00:30]} 7. Nf3 {[%emt 0:00:30]} h5 {[%emt 0:00:30]} 8. Ng5 {[%emt 0:00:30]} Be7 {[%emt 0:00:30]} 9. Bc4 {[%emt 0:00:30]} O-O {[%emt 0:00:30]} 10. a4 {[%emt 0:00:30]} Nc6 {[%emt 0:00:30]} 11. Be3 {[%emt 0:00:30]} Nb4 {[%emt 0:00:30]} 12. O-O {[%emt 0:00:30]} Bd7 {[%emt 0:00:30]} 13. Qe2 {[%emt 0:00:30]} Rc8 {[%emt 0:00:30]} 14. Bb3 {[%emt 0:00:30]} Qa5 {[%emt 0:00:30]} 15. f4 {[%emt 0:00:30]} Bd8 {[%emt 0:00:30]} 16. fxe5 {[%emt 0:00:30]} Qxe5 {[%emt 0:00:30]} 17. Rad1 {[%emt 0:00:30]} Be7 {[%emt 0:00:30]} 18. Qf2 {[%emt 0:00:30]} b5 {[%emt 0:00:30]} 19. Nf3 {[%emt 0:00:30]} Nxe4 {[%emt 0:00:30]} 20. Nxe5 {[%emt 0:00:30]} Nxf2 {[%emt 0:00:30]} 21. Rxf2 {[%emt 0:00:30]} 1-0

[Event "European Womens-ch 2025"]
[Site "Rhodes"]
[Date "2025.04.03"]
[Round "4.52"]
[White "Chelushkina, Irina"]
[Black "Golsta, Ramona"]
[Result "1-0"]
[Annotator "RC"]
[ECO "D79"]
[WhiteElo "2134"]
[BlackElo "1943"]
[PlyCount "165"]
[EventDate "2025.03.29"]
[EventType "swiss"]
[EventCountry "GRE"]
[SourceTitle "playchess.com"]
[Source "ChessBase"]
[SourceQuality "1"]
[TimeControl "40/5400+30:1800+30"]

1. Nf3 {[%emt 0:00:05]} d5 {[%emt 0:00:08]} 2. g3 {[%emt 0:00:27]} Nf6 {[%emt 0:00:29]} 3. Bg2 {[%emt 0:00:14]} g6 {[%emt 0:00:06]} 4. d4 {[%emt 0:01:41]} Bg7 {[%emt 0:00:10]} 5. O-O {[%emt 0:00:27]} O-O {[%emt 0:00:07]} 6. c4 {[%emt 0:00:13]} c6 {[%emt 0:00:19]} 7. cxd5 {[%emt 0:01:18]} cxd5 {[%emt 0:00:58]} 8. Nc3 {[%emt 0:00:04]} Nc6 {[%emt 0:01:39]} 9. Ne5 {[%emt 0:01:11]} a6 {[%emt 0:17:57]} 10. h3 {[%emt 0:10:51]} Be6 {[%emt 0:04:16]} 11. Be3 {[%emt 0:02:11]} Rc8 {[%emt 0:05:59]} 12. Rc1 {[%emt 0:04:20]} Nd7 {[%emt 0:03:40]} 13. Nxc6 {[%emt 0:01:13]} bxc6 {[%emt 0:00:39]} 14. Na4 {[%emt 0:03:49]} f6 {[%emt 0:04:32]} 15. b3 {[%emt 0:00:50]} Bf7 {[%emt 0:00:50]} 16. Qd3 {[%emt 0:00:04]} a5 {[%emt 0:01:57]} 17. Bd2 {[%emt 0:04:39]} e5 {[%emt 0:07:27]} 18. e3 {[%emt 0:01:49]} f5 {[%emt 0:05:11]} 19. dxe5 {[%emt 0:07:55]} Nxe5 {[%emt 0:00:38]} 20. Qa6 {[%emt 0:00:17]} Ra8 {[%emt 0:00:39]} 21. Qe2 {[%emt 0:00:06]} Be8 {[%emt 0:06:47]} 22. Bc3 {[%emt 0:01:34]} Nf7 {[%emt 0:03:34]} 23. Bxg7 {[%emt 0:00:07]} Kxg7 {[%emt 0:00:04]} 24. Qd2 {[%emt 0:02:41]} Nd6 {[%emt 0:03:12]} 25. Qd4+ {[%emt 0:02:54]} Qf6 {[%emt 0:00:54]} 26. Nc5 {[%emt 0:02:06]} Qxd4 {[%emt 0:04:21]} 27. Ne6+ {[%emt 0:08:15]} Kf6 {[%emt 0:01:22]} 28. Nxd4 {[%emt 0:00:04]} Ra6 {[%emt 0:02:38]} 29. Rfd1 {[%emt 0:00:07]} Bd7 {[%emt 0:00:31]} 30. Bf1 {[%emt 0:00:09]} Rb6 {[%emt 0:00:13]} 31. Rc5 {[%emt 0:03:26]} Nb7 {[%emt 0:00:20]} 32. Rc2 {[%emt 0:00:15]} c5 {[%emt 0:05:26]} 33. Ne2 {[%emt 0:00:40]} Be6 {[%emt 0:03:43]} 34. Nc3 {[%emt 0:01:16]} Rd8 {[%emt 0:04:16]} 35. Rcd2 {[%emt 0:05:07]} Rbd6 {[%emt 0:01:02]} 36. Bg2 {[%emt 0:00:34]} d4 {[%emt 0:09:08]} 37. exd4 {[%emt 0:02:40]} Rxd4 {[%emt 0:00:35]} 38. Rxd4 {[%emt 0:00:17]} cxd4 {[%emt 0:00:13]} 39. Nb5 {[%emt 0:00:39]} Nc5 {[%emt 0:00:49]} 40. Rxd4 {[%emt 0:00:00]} Rxd4 {[%emt 0:00:00]} 41. Nxd4 {[%emt 0:01:01]} Nd3 {[%emt 0:06:44]} 42. Nc6 {[%emt 0:15:11]} Nc1 {[%emt 0:01:41]} 43. Nxa5 {[%emt 0:00:05]} Nxa2 {[%emt 0:00:11]} 44. f4 {[%emt 0:00:06]} Nb4 {[%emt 0:07:29]} 45. Kf2 {[%emt 0:01:21]} Ke7 {[%emt 0:02:41]} 46. Ke3 {[%emt 0:01:55]} Kd6 {[%emt 0:00:35]} 47. Kd4 {[%emt 0:06:41]} Nc2+ {[%emt 0:01:12]} 48. Kc3 {[%emt 0:00:07]} Ne3 {[%emt 0:00:23]} 49. Bf3 {[%emt 0:00:08]} Nf1 {[%emt 0:01:03]} 50. b4 {[%emt 0:03:46]} Nxg3 {[%emt 0:04:13]} 51. Nb7+ {[%emt 0:00:14]} Kc7 {[%emt 0:00:54]} 52. Kd4 {[%emt 0:00:56]} Ne4 {[%emt 0:01:36]} 53. Nc5 {[%emt 0:00:52]} Bc8 {[%emt 0:04:03]} 54. Bxe4 {[%emt 0:01:45]} fxe4 {[%emt 0:00:07]} 55. h4 {[%emt 0:00:03]} e3 {[%emt 0:03:39]} 56. Kxe3 {[%emt 0:00:06]} Kd6 {[%emt 0:00:16]} 57. Kd4 {[%emt 0:00:10]} h6 {[%emt 0:00:32]} 58. b5 {[%emt 0:01:11]} Kc7 {[%emt 0:01:11]} 59. Ne4 {[%emt 0:01:35]} Bb7 {[%emt 0:01:06]} 60. Nf6 {[%emt 0:05:48]} Kb6 {[%emt 0:00:31]} 61. Kc4 {[%emt 0:00:48]} Bf3 {[%emt 0:00:19]} 62. Nd7+ {[%emt 0:02:22]} Kc7 {[%emt 0:00:13]} 63. Ne5 {[%emt 0:00:04]} Be4 {[%emt 0:00:26]} 64. Kc5 {[%emt 0:00:05]} Kb7 {[%emt 0:02:08]} 65. b6 {[%emt 0:00:17]} h5 {[%emt 0:00:44]} 66. Nc4 {[%emt 0:02:51]} Bg2 {[%emt 0:00:28]} 67. Na5+ {[%emt 0:02:23]} Ka6 {[%emt 0:00:29]} 68. b7 {[%emt 0:00:15]} Ka7 {[%emt 0:01:00]} 69. Kd6 {[%emt 0:00:56]} Kb8 {[%emt 0:00:11]} 70. Ke5 {[%emt 0:00:05]} Kc7 {[%emt 0:00:59]} 71. Kf6 {[%emt 0:00:47]} Be4 {[%emt 0:00:16]} 72. Nc4 {[%emt 0:00:51]} Bxb7 {[%emt 0:01:13]} 73. Kxg6 {[%emt 0:01:07]} Bf3 {[%emt 0:00:06]} 74. Kf6 {[%emt 0:02:55]} Kd8 {[%emt 0:00:28]} 75. Ne5 {[%emt 0:01:48]} Bd1 {[%emt 0:00:30]} 76. Kf7 {[%emt 0:02:24]} Bc2 {[%emt 0:00:38]} 77. Nc6+ {[%emt 0:00:56]} Kd7 {[%emt 0:00:20]} 78. Nd4 {[%emt 0:00:03]} Bd1 {[%emt 0:00:30]} 79. f5 {[%emt 0:00:04]} Kd6 {[%emt 0:00:12]} 80. f6 {[%emt 0:00:11]} Ba4 {[%emt 0:01:07]} 81. Kf8 {[%emt 0:03:52]} Ke5 {[%emt 0:00:49]} 82. f7 {[%emt 0:01:12]} Kxd4 {[%emt 0:00:42]} 83. Kg7 {[%emt 0:00:21]} 1-0

[Event "European Womens-ch 2025"]
[Site "Rhodes"]
[Date "2025.04.03"]
[Round "4.53"]
[White "Zvereva, Marija"]
[Black "Cornileau, Juliette"]
[Result "0-1"]
[Annotator "RC"]
[ECO "B20"]
[WhiteElo "2033"]
[BlackElo "2130"]
[PlyCount "108"]
[EventDate "2025.03.29"]
[EventType "swiss"]
[EventCountry "GRE"]
[SourceTitle "playchess.com"]
[Source "ChessBase"]
[SourceQuality "1"]
[TimeControl "40/5400+30:1800+30"]

1. f4 {[%emt 0:06:34]} c5 {[%emt 0:06:34]} 2. Nf3 {[%emt 0:00:18]} d5 {[%emt 0:00:29]} 3. g3 {[%emt 0:00:10]} Nc6 {[%emt 0:00:18]} 4. Bg2 {[%emt 0:00:10]} g6 {[%emt 0:04:48]} 5. O-O {[%emt 0:00:27]} Bg7 {[%emt 0:00:16]} 6. d3 {[%emt 0:01:02]} e6 {[%emt 0:04:51]} 7. e4 {[%emt 0:05:57]} Nge7 {[%emt 0:00:26]} 8. e5 {[%emt 0:16:40]} h5 {[%emt 0:02:47]} 9. Be3 {[%emt 0:04:16]} b6 {[%emt 0:08:44]} 10. Bf2 {[%emt 0:01:16]} O-O {[%emt 0:14:05]} 11. Nc3 {[%emt 0:04:22]} a6 {[%emt 0:09:07]} 12. h3 {[%emt 0:01:57]} Qc7 {[%emt 0:01:45]} 13. g4 {[%emt 0:11:56]} hxg4 {[%emt 0:00:33]} 14. hxg4 {[%emt 0:00:04]} f6 {[%emt 0:01:06]} 15. exf6 {[%emt 0:08:16]} Bxf6 {[%emt 0:00:34]} 16. Bg3 {[%emt 0:04:19]} b5 {[%emt 0:09:10]} 17. Qe1 {[%emt 0:00:39]} Nd4 {[%emt 0:07:41]} 18. Rc1 {[%emt 0:04:08]} Nxf3+ {[%emt 0:01:22]} 19. Bxf3 {[%emt 0:00:16]} Qb6 {[%emt 0:02:27]} 20. Kg2 {[%emt 0:09:38]} b4 {[%emt 0:01:59]} 21. Nd1 {[%emt 0:01:00]} Bd7 {[%emt 0:02:28]} 22. Bh4 {[%emt 0:00:48]} Qd6 {[%emt 0:01:33]} 23. Bxf6 {[%emt 0:04:51]} Rxf6 {[%emt 0:00:10]} 24. Qh4 {[%emt 0:00:56]} Rf7 {[%emt 0:07:52]} 25. Rh1 {[%emt 0:06:47]} Kf8 {[%emt 0:00:13]} 26. Qh6+ {[%emt 0:02:51]} Ke8 {[%emt 0:00:47]} 27. Qg5 {[%emt 0:00:12]} Bc6 {[%emt 0:00:49]} 28. Kg3 {[%emt 0:01:36]} Kd7 {[%emt 0:00:59]} 29. Ne3 {[%emt 0:00:29]} Raf8 {[%emt 0:00:36]} 30. Ng2 {[%emt 0:00:07]} e5 {[%emt 0:03:50]} 31. Rce1 {[%emt 0:00:06]} exf4+ {[%emt 0:00:23]} 32. Kf2 {[%emt 0:00:09]} Qf6 {[%emt 0:02:05]} 33. Qxf6 {[%emt 0:02:22]} Rxf6 {[%emt 0:00:02]} 34. g5 {[%emt 0:00:27]} R6f7 {[%emt 0:02:03]} 35. Bg4+ {[%emt 0:00:52]} Kc7 {[%emt 0:02:11]} 36. Be6 {[%emt 0:00:09]} Rg7 {[%emt 0:00:04]} 37. d4 {[%emt 0:01:31]} Nf5 {[%emt 0:02:37]} 38. Nxf4 {[%emt 0:01:01]} Nxd4 {[%emt 0:00:09]} 39. Kg3 {[%emt 0:00:06]} Kd6 {[%emt 0:00:34]} 40. Bg4 {[%emt 0:00:00]} Nf5+ {[%emt 0:00:00]} 41. Kf2 {[%emt 0:17:04]} Ne3 {[%emt 0:08:05]} 42. Rxe3 {[%emt 0:03:40]} Rxf4+ {[%emt 0:01:25]} 43. Kg3 {[%emt 0:00:37]} Rxg4+ {[%emt 0:01:49]} 44. Kxg4 {[%emt 0:00:05]} d4 {[%emt 0:00:04]} 45. Ree1 {[%emt 0:00:15]} Bxh1 {[%emt 0:00:09]} 46. Rxh1 {[%emt 0:00:02]} Re7 {[%emt 0:02:48]} 47. Rh2 {[%emt 0:01:59]} Kd5 {[%emt 0:03:04]} 48. Rf2 {[%emt 0:00:54]} Re6 {[%emt 0:00:51]} 49. b3 {[%emt 0:02:13]} c4 {[%emt 0:05:20]} 50. Rf8 {[%emt 0:02:48]} c3 {[%emt 0:00:55]} 51. Rd8+ {[%emt 0:01:20]} Rd6 {[%emt 0:01:32]} 52. Rf8 {[%emt 0:02:51]} d3 {[%emt 0:01:37]} 53. cxd3 {[%emt 0:00:20]} c2 {[%emt 0:00:38]} 54. Rf1 {[%emt 0:01:12]} Kd4 {[%emt 0:00:22]} 0-1

[Event "European Womens-ch 2025"]
[Site "Rhodes"]
[Date "2025.04.03"]
[Round "4.54"]
[White "Karadas, Hena"]
[Black "Nadzamova, Viktoria"]
[Result "0-1"]
[Annotator "RC"]
[ECO "B23"]
[WhiteElo "1931"]
[BlackElo "2122"]
[PlyCount "90"]
[EventDate "2025.03.29"]
[EventType "swiss"]
[EventCountry "GRE"]
[SourceTitle "playchess.com"]
[Source "ChessBase"]
[SourceQuality "1"]
[TimeControl "40/5400+30:1800+30"]

1. e4 {[%emt 0:00:04]} c5 {[%emt 0:00:08]} 2. Nc3 {[%emt 0:00:08]} Nc6 {[%emt 0:00:18]} 3. Bb5 {[%emt 0:00:09]} e6 {[%emt 0:00:47]} 4. Bxc6 {[%emt 0:00:14]} bxc6 {[%emt 0:00:11]} 5. f4 {[%emt 0:00:50]} d5 {[%emt 0:01:58]} 6. e5 {[%emt 0:02:02]} Ne7 {[%emt 0:02:06]} 7. Nf3 {[%emt 0:01:00]} h5 {[%emt 0:01:05]} 8. O-O {[%emt 0:04:51]} Nf5 {[%emt 0:00:22]} 9. d3 {[%emt 0:04:04]} Be7 {[%emt 0:01:08]} 10. Ne2 {[%emt 0:03:10]} h4 {[%emt 0:02:35]} 11. d4 {[%emt 0:03:22]} Ba6 {[%emt 0:06:40]} 12. c3 {[%emt 0:06:23]} Qb6 {[%emt 0:01:23]} 13. Re1 {[%emt 0:07:19]} Bxe2 {[%emt 0:03:24]} 14. Rxe2 {[%emt 0:00:22]} cxd4 {[%emt 0:00:32]} 15. cxd4 {[%emt 0:02:07]} c5 {[%emt 0:00:27]} 16. b3 {[%emt 0:06:08]} cxd4 {[%emt 0:02:28]} 17. Qd3 {[%emt 0:00:18]} Rc8 {[%emt 0:01:03]} 18. Bb2 {[%emt 0:00:36]} Rc3 {[%emt 0:01:48]} 19. Bxc3 {[%emt 0:03:24]} dxc3+ {[%emt 0:00:07]} 20. Kf1 {[%emt 0:00:58]} Bc5 {[%emt 0:14:13]} 21. b4 {[%emt 0:06:56]} Ne3+ {[%emt 0:05:41]} 22. Ke1 {[%emt 0:06:01]} Qxb4 {[%emt 0:01:45]} 23. Rxe3 {[%emt 0:03:10]} Bxe3 {[%emt 0:01:16]} 24. Qxe3 {[%emt 0:01:52]} O-O {[%emt 0:00:44]} 25. Rc1 {[%emt 0:06:02]} Rc8 {[%emt 0:00:26]} 26. Qd3 {[%emt 0:01:48]} Rc4 {[%emt 0:04:42]} 27. Kf2 {[%emt 0:03:11]} Qc5+ {[%emt 0:08:18]} 28. Kf1 {[%emt 0:01:07]} g6 {[%emt 0:01:33]} 29. g3 {[%emt 0:01:36]} h3 {[%emt 0:06:22]} 30. Rc2 {[%emt 0:02:46]} d4 {[%emt 0:04:03]} 31. Ng5 {[%emt 0:03:26]} Rb4 {[%emt 0:01:12]} 32. g4 {[%emt 0:02:41]} Rb1+ {[%emt 0:01:18]} 33. Ke2 {[%emt 0:01:28]} Rb2 {[%emt 0:00:35]} 34. Kd1 {[%emt 0:04:10]} Qd5 {[%emt 0:26:52]} 35. Rxb2 {[%emt 0:09:54]} cxb2 {[%emt 0:00:00]} 36. Ne4 {[%emt 0:00:16]} Qxa2 {[%emt 0:00:00]} 37. Nd2 {[%emt 0:00:03]} Qa4+ {[%emt 0:00:00]} 38. Qc2 {[%emt 0:00:48]} Qb5 {[%emt 0:00:00]} 39. f5 {[%emt 0:01:44]} d3 {[%emt 0:00:00]} 40. Qc8+ {[%emt 0:00:00]} Kg7 {[%emt 0:00:00]} 41. Nb1 {[%emt 0:12:35]} Qxe5 {[%emt 0:00:00]} 42. Qc3 {[%emt 0:00:57]} Qxc3 {[%emt 0:00:00]} 43. Nxc3 {[%emt 0:00:02]} exf5 {[%emt 0:00:00]} 44. gxf5 {[%emt 0:00:32]} g5 {[%emt 0:00:00]} 45. Kd2 {[%emt 0:02:19]} g4 {[%emt 0:00:00]} 0-1

[Event "European Womens-ch 2025"]
[Site "Rhodes"]
[Date "2025.04.03"]
[Round "4.55"]
[White "Berke, Ana"]
[Black "Krkyasharyan, Sona"]
[Result "1/2-1/2"]
[Annotator "NA RC"]
[ECO "B55"]
[WhiteElo "2119"]
[BlackElo "1989"]
[PlyCount "54"]
[EventDate "2025.03.29"]
[EventType "swiss"]
[EventCountry "GRE"]
[SourceTitle "playchess.com"]
[Source "ChessBase"]
[SourceQuality "1"]
[TimeControl "40/5400+30:1800+30"]

1. e4 {[%emt 1:31:00]} c5 {[%emt 1:31:00]} 2. Nf3 {[%emt 0:00:30]} d6 {[%emt 0:00:30]} 3. d4 {[%emt 0:00:30]} cxd4 {[%emt 0:00:30]} 4. Nxd4 {[%emt 0:00:30]} Nf6 {[%emt 0:00:30]} 5. f3 {[%emt 0:00:30]} e5 {[%emt 0:00:30]} 6. Nb3 {[%emt 0:00:30]} d5 {[%emt 0:00:30]} 7. Bg5 {[%emt 0:00:30]} d4 {[%emt 0:00:30]} 8. c3 {[%emt 0:00:30]} Nc6 {[%emt 0:00:30]} 9. cxd4 {[%emt 0:00:30]} Bb4+ {[%emt 0:00:30]} 10. Bd2 {[%emt 0:00:30]} Nxe4 {[%emt 0:00:30]} 11. Bxb4 {[%emt 0:00:30]} Qh4+ {[%emt 0:00:30]} 12. g3 {[%emt 0:00:30]} Nxg3 {[%emt 0:00:30]} 13. hxg3 {[%emt 0:00:30]} Qxh1 {[%emt 0:00:30]} 14. Ba3 {[%emt 0:00:30]} Bh3 {[%emt 0:00:30]} 15. N1d2 {[%emt 0:00:30]} Qg1 {[%emt 0:00:30]} 16. Qe2 {[%emt 0:00:30]} Qxg3+ {[%emt 0:00:30]} 17. Kd1 {[%emt 0:00:30]} O-O-O {[%emt 0:00:30]} 18. Rc1 {[%emt 0:00:30]} Bxf1 {[%emt 0:00:30]} 19. Qxf1 {[%emt 0:00:30]} Kb8 {[%emt 0:00:30]} 20. Rxc6 {[%emt 0:00:30]} bxc6 {[%emt 0:00:30]} 21. Na5 {[%emt 0:00:30]} Qg6 {[%emt 0:00:30]} 22. Qa6 {[%emt 0:00:30]} Rd7 {[%emt 0:00:30]} 23. Nxc6+ {[%emt 0:00:30]} Kc7 {[%emt 0:00:30]} 24. Qxa7+ {[%emt 0:00:30]} Kxc6 {[%emt 0:00:30]} 25. Qa4+ {[%emt 0:00:30]} Kc7 26. Qa7+ {[%emt 0:00:30]} Kc6 {[%emt 0:01:00]} 27. Qa4+ {[%emt 0:00:30]} Kc7 1/2-1/2

[Event "European Womens-ch 2025"]
[Site "Rhodes"]
[Date "2025.04.03"]
[Round "4.56"]
[White "Nahapetyan, Ani"]
[Black "Koridze, Lile"]
[Result "1-0"]
[Annotator "RC"]
[ECO "B90"]
[WhiteElo "1887"]
[BlackElo "2115"]
[PlyCount "73"]
[EventDate "2025.03.29"]
[EventType "swiss"]
[EventCountry "GRE"]
[SourceTitle "playchess.com"]
[Source "ChessBase"]
[SourceQuality "1"]
[TimeControl "40/5400+30:1800+30"]

1. e4 {[%emt 0:00:04]} c5 {[%emt 0:00:04]} 2. Nf3 {[%emt 0:00:06]} d6 {[%emt 0:00:04]} 3. d4 {[%emt 0:00:09]} cxd4 {[%emt 0:00:06]} 4. Nxd4 {[%emt 0:00:03]} Nf6 {[%emt 0:00:05]} 5. Nc3 {[%emt 0:00:14]} a6 {[%emt 0:00:03]} 6. Bd3 {[%emt 0:00:10]} e5 {[%emt 0:01:50]} 7. Nde2 {[%emt 0:00:43]} Nc6 {[%emt 0:01:45]} 8. O-O {[%emt 0:03:20]} Be7 {[%emt 0:06:24]} 9. h3 {[%emt 0:05:04]} O-O {[%emt 0:02:25]} 10. Be3 {[%emt 0:05:17]} Nb4 {[%emt 0:13:28]} 11. Bc4 {[%emt 0:07:25]} Be6 {[%emt 0:11:09]} 12. Bd5 {[%emt 0:05:55]} Nbxd5 {[%emt 0:11:30]} 13. exd5 {[%emt 0:00:46]} Bf5 {[%emt 0:00:05]} 14. f4 {[%emt 0:09:00]} exf4 {[%emt 0:08:52]} 15. Rxf4 {[%emt 0:02:59]} Bg6 {[%emt 0:02:17]} 16. Ng3 {[%emt 0:02:16]} Nd7 {[%emt 0:03:56]} 17. Bd4 {[%emt 0:04:49]} Ne5 {[%emt 0:04:07]} 18. Rf1 {[%emt 0:06:49]} b5 {[%emt 0:04:52]} 19. Nf5 {[%emt 0:04:42]} Re8 {[%emt 0:04:18]} 20. Bxe5 {[%emt 0:14:00]} dxe5 {[%emt 0:01:19]} 21. Qf3 {[%emt 0:03:28]} Bc5+ {[%emt 0:09:45]} 22. Kh1 {[%emt 0:00:43]} Rc8 {[%emt 0:02:33]} 23. Rad1 {[%emt 0:03:02]} Qb6 {[%emt 0:08:31]} 24. d6 {[%emt 0:03:23]} Bxf5 {[%emt 0:00:59]} 25. d7 {[%emt 0:04:13]} Bxd7 {[%emt 0:00:05]} 26. Qxf7+ {[%emt 0:00:11]} Kh8 {[%emt 0:00:01]} 27. Rxd7 {[%emt 0:00:28]} Rg8 {[%emt 0:00:35]} 28. Nd5 {[%emt 0:03:49]} Qc6 {[%emt 0:02:38]} 29. Rf6 {[%emt 0:02:34]} Qa8 {[%emt 0:00:29]} 30. Rh6 {[%emt 0:01:11]} Rc6 {[%emt 0:00:33]} 31. Nf6 {[%emt 0:01:07]} Rxf6 {[%emt 0:01:12]} 32. Rxf6 {[%emt 0:00:42]} Qc8 {[%emt 0:00:00]} 33. Rf5 {[%emt 0:02:49]} Be3 {[%emt 0:00:26]} 34. Rxe5 {[%emt 0:02:10]} Bh6 {[%emt 0:00:06]} 35. Rde7 {[%emt 0:01:35]} Qxc2 {[%emt 0:00:53]} 36. Re8 {[%emt 0:00:09]} Qc1+ {[%emt 0:00:19]} 37. Re1 {[%emt 0:00:07]} 1-0

[Event "European Womens-ch 2025"]
[Site "Rhodes"]
[Date "2025.04.03"]
[Round "4.57"]
[White "Chasouraki, Chrysi"]
[Black "Heinatz, Gundula"]
[Result "1/2-1/2"]
[Annotator "RC"]
[ECO "B13"]
[WhiteElo "1843"]
[BlackElo "2111"]
[PlyCount "82"]
[EventDate "2025.03.29"]
[EventType "swiss"]
[EventCountry "GRE"]
[SourceTitle "playchess.com"]
[Source "ChessBase"]
[SourceQuality "1"]
[TimeControl "40/5400+30:1800+30"]

1. e4 {[%emt 0:03:45]} c6 {[%emt 0:00:06]} 2. d4 {[%emt 0:00:07]} d5 {[%emt 0:00:05]} 3. exd5 {[%emt 0:00:05]} cxd5 {[%emt 0:00:04]} 4. Bd3 {[%emt 0:00:06]} Nc6 {[%emt 0:00:19]} 5. c3 {[%emt 0:00:09]} Qc7 {[%emt 0:00:40]} 6. h3 {[%emt 0:00:12]} Nf6 {[%emt 0:01:12]} 7. Nf3 {[%emt 0:00:22]} g6 {[%emt 0:02:36]} 8. O-O {[%emt 0:00:13]} Bg7 {[%emt 0:00:25]} 9. Re1 {[%emt 0:01:28]} O-O {[%emt 0:06:09]} 10. Nbd2 {[%emt 0:02:44]} Nh5 {[%emt 0:09:01]} 11. Nb3 {[%emt 0:09:52]} a6 {[%emt 0:16:15]} 12. Be3 {[%emt 0:11:53]} f5 {[%emt 0:00:51]} 13. c4 {[%emt 0:16:41]} e6 {[%emt 0:03:53]} 14. Rc1 {[%emt 0:10:46]} Nf6 {[%emt 0:06:37]} 15. Ne5 {[%emt 0:21:36]} Qd6 {[%emt 0:15:29]} 16. Bf4 {[%emt 0:04:11]} Nh5 {[%emt 0:01:11]} 17. Bh2 {[%emt 0:01:13]} f4 {[%emt 0:00:29]} 18. c5 {[%emt 0:05:11]} Qd8 {[%emt 0:02:14]} 19. Nxc6 {[%emt 0:01:26]} bxc6 {[%emt 0:00:06]} 20. Be2 {[%emt 0:01:24]} Qg5 {[%emt 0:01:11]} 21. Bg4 {[%emt 0:03:39]} Nf6 {[%emt 0:07:17]} 22. Bxe6+ {[%emt 0:01:14]} Bxe6 {[%emt 0:00:04]} 23. Rxe6 {[%emt 0:00:10]} Ne4 {[%emt 0:04:46]} 24. f3 {[%emt 0:01:18]} Ng3 {[%emt 0:00:17]} 25. Bxg3 {[%emt 0:01:02]} fxg3 {[%emt 0:00:09]} 26. Rc3 {[%emt 0:02:01]} Rae8 {[%emt 0:04:54]} 27. Qe2 {[%emt 0:00:36]} Rxe6 {[%emt 0:00:37]} 28. Qxe6+ {[%emt 0:00:02]} Kh8 {[%emt 0:00:48]} 29. Qg4 {[%emt 0:01:02]} Bh6 {[%emt 0:02:16]} 30. Qxg5 {[%emt 0:00:22]} Bxg5 {[%emt 0:00:04]} 31. Rd3 {[%emt 0:00:37]} Rb8 {[%emt 0:05:10]} 32. Kf1 {[%emt 0:00:30]} Rb5 {[%emt 0:00:58]} 33. a4 {[%emt 0:00:29]} Rb4 {[%emt 0:00:24]} 34. a5 {[%emt 0:00:27]} Rb8 {[%emt 0:01:05]} 35. Ke2 {[%emt 0:00:30]} Kg7 {[%emt 0:00:52]} 36. Kd1 {[%emt 0:00:29]} h5 {[%emt 0:00:48]} 37. Kc2 {[%emt 0:00:24]} Re8 {[%emt 0:01:19]} 38. Nc1 {[%emt 0:00:40]} h4 {[%emt 0:04:46]} 39. Kd1 {[%emt 0:00:30]} Bd8 {[%emt 0:03:53]} 40. b4 {[%emt 0:00:00]} Bg5 {[%emt 0:00:00]} 41. Ne2 {[%emt 0:07:17]} Rb8 {[%emt 0:06:09]} 1/2-1/2